bitfinex/quotes_BTCUSD_20220731
["timestamp","ask_amount","ask_price","bid_price","bid_amount"]
[1659275144917,0.00274599,23740.0,23739.0,0.40725733]
[1659275146140,0.00274999,23741.0,23739.0,0.40740302]
[1659275146359,0.00274999,23741.0,23740.0,0.03467316]
[1659275146827,0.30653599,23741.0,23740.0,0.24520516]
[1659275147040,0.30653599,23741.0,23740.0,0.03467316]
[1659275147677,0.00274999,23741.0,23740.0,0.03467316]
[1659275148312,0.00274999,23741.0,23740.0,0.09467316]
[1659275149231,0.00274999,23741.0,23740.0,0.14467316]
[1659275149439,0.00274999,23741.0,23740.0,0.56569016]
[1659275149650,0.00274999,23741.0,23740.0,0.50569016]
[1659275149866,0.00274999,23741.0,23740.0,0.75996574]
[1659275150100,0.00274999,23741.0,23740.0,0.33894874]
[1659275150324,0.00274999,23741.0,23740.0,0.38767562]
[1659275151244,0.00274999,23741.0,23740.0,0.13783562]
[1659275151704,0.00274999,23741.0,23740.0,0.08883562]
[1659275152170,0.00274999,23741.0,23740.0,0.08467316]
[1659275152390,0.00274999,23741.0,23740.0,0.13367316]
[1659275153932,0.00274999,23741.0,23740.0,0.50569016]
[1659275154138,0.00274999,23741.0,23740.0,0.08467316]
[1659275154605,0.00274999,23741.0,23740.0,0.16367316]
[1659275155756,0.00274999,23741.0,23740.0,0.08467316]
[1659275156745,0.00274999,23741.0,23740.0,0.16367316]
[1659275157264,0.00274999,23741.0,23740.0,0.39422694]
[1659275157475,0.00274999,23741.0,23740.0,0.39411208]
[1659275157902,0.00274999,23741.0,23740.0,0.31511208]
[1659275158384,0.00274999,23741.0,23740.0,0.13255892]
[1659275158630,0.08667999,23741.0,23740.0,0.08255892]
[1659275159628,0.00274999,23741.0,23740.0,0.00355892]
[1659275160257,0.00274999,23741.0,23740.0,0.05]
[1659275160472,0.00274999,23741.0,23740.0,0.094]
[1659275160687,0.00274999,23741.0,23740.0,0.09920864]
[1659275160943,0.00274999,23741.0,23740.0,0.094]
[1659275161173,0.00274999,23741.0,23740.0,0.50125733]
[1659275161412,0.00274999,23741.0,23740.0,1.0269733]
[1659275161630,0.00274999,23741.0,23740.0,0.9829733]
[1659275161847,0.00274999,23741.0,23740.0,0.7724623]
[1659275162290,0.00274999,23741.0,23740.0,0.9460423]
[1659275162924,0.00274999,23741.0,23740.0,0.7355323]
[1659275163561,0.00274999,23741.0,23740.0,0.8694623]
[1659275163783,0.00274999,23741.0,23740.0,0.8224623]
[1659275164013,0.00274999,23741.0,23740.0,0.6885323]
[1659275164446,0.00274999,23741.0,23740.0,0.7295323]
[1659275165732,0.00274999,23741.0,23740.0,0.6885323]
[1659275166617,0.00274999,23741.0,23740.0,0.7315323]
[1659275167320,0.64375788,23747.0,23740.0,0.7315323]
[1659275167545,0.303786,23746.0,23740.0,0.7315323]
[1659275167770,0.55840377,23746.0,23740.0,0.6885323]
[1659275167989,0.303786,23745.0,23740.0,0.6885323]
[1659275168216,0.303786,23744.0,23741.0,0.05]
[1659275168435,0.303786,23743.0,23742.0,0.03467316]
[1659275168701,1.05353758,23747.0,23742.0,0.03467316]
[1659275168926,0.303786,23746.0,23742.0,0.03467316]
[1659275169372,0.303786,23745.0,23742.0,0.03467316]
[1659275169586,0.0030547,23745.0,23742.0,0.03467316]
[1659275169819,0.303786,23746.0,23742.0,0.03467316]
[1659275170048,0.303786,23745.0,23741.0,0.05366358]
[1659275170285,0.00252237,23746.0,23741.0,0.00366358]
[1659275170510,0.0030547,23744.0,23741.0,0.00366358]
[1659275170759,0.21306737,23746.0,23741.0,0.00366358]
[1659275170979,0.303786,23745.0,23741.0,0.03833674]
[1659275171248,0.21306737,23746.0,23741.0,0.03833674]
[1659275171438,0.303786,23745.0,23741.0,0.03833674]
[1659275171670,0.0030547,23744.0,23741.0,0.00366358]
[1659275171917,0.30492506,23744.0,23741.0,0.00366358]
[1659275172131,0.1252,23742.0,23741.0,0.00366358]
[1659275172355,1.39546733,23742.0,23741.0,0.00366358]
[1659275172675,1.39852203,23742.0,23741.0,0.00366358]
[1659275173482,1.39852203,23742.0,23732.0,0.3803]
[1659275173483,1.49852203,23742.0,23732.0,0.3803]
[1659275173723,1.49852203,23742.0,23726.0,0.03161]
[1659275173724,0.1252,23733.0,23726.0,0.03161]
[1659275173981,0.53245733,23733.0,23726.0,0.9581]
[1659275174474,0.05,23732.0,23731.0,0.05]
[1659275174712,0.33262506,23740.0,23734.0,0.05]
[1659275174942,0.71106733,23739.0,23734.0,0.05]
[1659275175189,0.71106733,23739.0,23731.0,0.40725733]
[1659275175190,0.40725733,23739.0,23736.0,0.05]
[1659275175414,0.35381,23738.0,23736.0,0.05]
[1659275175648,0.43245733,23739.0,23736.0,0.05]
[1659275175860,0.30381,23738.0,23736.0,0.05]
[1659275176094,0.43245733,23739.0,23736.0,0.08493362]
[1659275176322,0.30381,23738.0,23736.0,0.08493362]
[1659275176599,0.30381,23737.0,23736.0,0.127]
[1659275176830,0.43245733,23739.0,23736.0,0.127]
[1659275177073,0.43245733,23739.0,23736.0,0.16728674]
[1659275177074,0.30381,23738.0,23736.0,0.16728674]
[1659275177292,0.30381,23737.0,23736.0,0.127]
[1659275177518,0.0252,23738.0,23736.0,0.127]
[1659275177744,0.30381,23737.0,23736.0,0.05]
[1659275177960,0.41217613,23739.0,23736.0,0.05]
[1659275178191,0.30381,23738.0,23736.0,0.05]
[1659275178452,0.30381,23737.0,23736.0,0.128]
[1659275178681,0.41217613,23739.0,23736.0,0.128]
[1659275178908,0.30381,23738.0,23736.0,0.128]
[1659275179194,0.05,23737.0,23736.0,0.128]
[1659275179410,0.0252,23738.0,23736.0,0.128]
[1659275179640,0.41217613,23739.0,23736.0,0.128]
[1659275179873,0.30381,23738.0,23736.0,0.128]
[1659275180072,0.30381,23737.0,23736.0,0.128]
[1659275180302,0.0030547,23737.0,23736.0,0.05]
[1659275180530,0.0252,23738.0,23736.0,0.129]
[1659275180772,0.30381,23738.0,23736.0,0.129]
[1659275181008,0.30381,23737.0,23736.0,0.129]
[1659275181228,0.41217613,23739.0,23738.0,0.05]
[1659275181467,0.71598613,23739.0,23738.0,0.05]
[1659275181956,0.71352673,23739.0,23738.0,0.05]
[1659275182383,0.71352673,23739.0,23738.0,0.128]
[1659275182584,0.71352673,23739.0,23738.0,0.078]
[1659275182848,0.3062694,23739.0,23738.0,0.128]
[1659275183297,0.3062694,23739.0,23738.0,0.16267316]
[1659275183522,0.3062694,23739.0,23738.0,0.128]
[1659275183749,0.3062694,23739.0,23738.0,0.05]
[1659275183975,0.0024594,23739.0,23738.0,0.05]
[1659275184189,0.0024594,23739.0,23735.0,0.5996]
[1659275184448,0.40971673,23739.0,23738.0,0.078]
[1659275184682,1.01845179,23739.0,23738.0,0.078]
[1659275185365,0.71352673,23739.0,23738.0,0.078]
[1659275185637,0.71658143,23739.0,23738.0,0.078]
[1659275185832,0.71658143,23739.0,23732.0,0.5939]
[1659275186079,0.30381,23738.0,23732.0,1.00115733]
[1659275186309,0.30381,23737.0,23732.0,1.00115733]
[1659275186536,0.30381,23738.0,23732.0,1.06615733]
[1659275187044,0.40725733,23737.0,23732.0,0.065]
[1659275187267,0.30381,23736.0,23732.0,0.065]
[1659275187498,0.71106733,23735.0,23732.0,0.065]
[1659275187721,0.30381,23734.0,23730.0,0.05]
[1659275187946,0.40725733,23735.0,23730.0,0.05]
[1659275188421,0.40725733,23735.0,23730.0,0.128]
[1659275189105,0.40725733,23735.0,23732.0,0.05]
[1659275189340,0.40725733,23735.0,23733.0,0.03831833]
[1659275189570,0.30381,23734.0,23733.0,0.03831833]
[1659275189825,0.40725733,23735.0,23733.0,0.03467316]
[1659275190080,0.30381,23734.0,23732.0,0.05]
[1659275190334,0.41031203,23735.0,23732.0,0.08831848]
[1659275190561,0.30381,23734.0,23733.0,0.077]
[1659275192339,0.30381,23734.0,23732.0,0.09028674]
[1659275192563,0.41523083,23735.0,23733.0,0.078]
[1659275192802,0.30381,23734.0,23733.0,0.078]
[1659275193931,0.30381,23734.0,23732.0,0.05]
[1659275194154,0.30381,23733.0,23732.0,0.05]
[1659275194378,0.30381,23734.0,23732.0,0.05]
[1659275194608,0.30373768,23734.0,23733.0,0.078]
[1659275194835,0.32893768,23734.0,23733.0,0.078]
[1659275195295,0.41217613,23735.0,23733.0,0.078]
[1659275195296,0.0049188,23735.0,23734.0,0.05]
[1659275195525,0.0049188,23735.0,23734.0,0.09028674]
[1659275195775,0.0049188,23735.0,23734.0,0.39415374]
[1659275196474,0.0049188,23735.0,23734.0,0.47215374]
[1659275196929,0.0049188,23735.0,23734.0,0.16828674]
[1659275197665,0.0049188,23735.0,23734.0,0.47215374]
[1659275197894,0.0049188,23735.0,23734.0,0.16828674]
[1659275198378,0.0049188,23735.0,23734.0,0.09028674]
[1659275198612,0.0049188,23735.0,23734.0,0.16928674]
[1659275199059,0.0049188,23735.0,23734.0,0.47315374]
[1659275199797,0.0049188,23735.0,23734.0,0.39415374]
[1659275200013,0.0049188,23735.0,23734.0,0.09028674]
[1659275200251,0.0049188,23735.0,23734.0,0.39415374]
[1659275200460,0.0049188,23735.0,23734.0,0.128]
[1659275201355,0.0049188,23735.0,23734.0,0.078]
[1659275201813,0.0049188,23735.0,23732.0,1.0168]
[1659275202049,0.0049188,23735.0,23732.0,1.42405733]
[1659275202557,0.0049188,23735.0,23732.0,1.13608674]
[1659275203900,0.0049188,23735.0,23733.0,0.303867]
[1659275204130,0.0049188,23735.0,23732.0,1.05708674]
[1659275204576,0.0049188,23735.0,23732.0,1.13508674]
[1659275205503,0.0049188,23735.0,23732.0,1.0448]
[1659275205504,0.0079735,23735.0,23732.0,1.0448]
[1659275205721,0.0079735,23735.0,23732.0,0.9668]
[1659275206178,0.0079735,23735.0,23733.0,0.03697176]
[1659275206394,0.0049188,23735.0,23733.0,0.03697176]
[1659275206611,0.0079735,23735.0,23732.0,1.0448]
[1659275207285,0.0049188,23735.0,23733.0,0.03467316]
[1659275208433,0.0049188,23735.0,23733.0,0.11367316]
[1659275209784,0.0049188,23735.0,23733.0,0.03467316]
[1659275210452,0.0049188,23735.0,23733.0,0.11367316]
[1659275211401,0.0079735,23735.0,23733.0,0.079]
[1659275211860,0.0049188,23735.0,23733.0,0.03467316]
[1659275212075,0.0049188,23735.0,23732.0,0.9668]
[1659275212306,0.0049188,23735.0,23733.0,0.00265683]
[1659275212529,0.0049188,23735.0,23733.0,0.08165683]
[1659275212742,0.0049188,23735.0,23734.0,0.03467316]
[1659275213247,0.0049188,23735.0,23734.0,0.08467316]
[1659275213438,0.0079735,23735.0,23733.0,0.079]
[1659275213669,1.229067,23734.0,23733.0,0.079]
[1659275213915,1.229067,23734.0,23725.0,0.1005182]
[1659275213916,1.71792433,23734.0,23725.0,0.1005182]
[1659275214131,1.01604939,23733.0,23725.0,0.50777553]
[1659275214351,0.71112433,23732.0,23725.0,0.50777553]
[1659275214570,0.303867,23731.0,23725.0,0.50777553]
[1659275214793,0.303867,23730.0,23725.0,0.50777553]
[1659275215012,0.40725733,23732.0,23725.0,0.50777553]
[1659275215289,0.303867,23731.0,23725.0,0.50777553]
[1659275215505,0.40713264,23732.0,23725.0,0.50777553]
[1659275215727,0.303867,23731.0,23725.0,0.50777553]
[1659275215954,0.303867,23730.0,23725.0,0.50777553]
[1659275216175,0.40713264,23732.0,23725.0,0.50777553]
[1659275216395,0.303867,23731.0,23725.0,0.58577553]
[1659275216639,0.40713264,23732.0,23725.0,0.58577553]
[1659275216850,0.303867,23731.0,23725.0,0.58577553]
[1659275217095,0.40713264,23732.0,23725.0,0.58577553]
[1659275217318,0.303867,23731.0,23725.0,0.58577553]
[1659275217546,0.303867,23730.0,23725.0,0.58577553]
[1659275217766,0.40713264,23732.0,23725.0,0.50777553]
[1659275218063,0.303867,23731.0,23725.0,0.50777553]
[1659275218291,0.41199862,23732.0,23725.0,0.50777553]
[1659275218292,0.303867,23730.0,23725.0,0.50777553]
[1659275218505,0.42099862,23732.0,23725.0,0.57977553]
[1659275218724,0.303867,23731.0,23725.0,0.57977553]
[1659275218944,0.303867,23730.0,23725.0,0.57977553]
[1659275219177,0.42099862,23732.0,23725.0,0.57977553]
[1659275219499,0.303867,23731.0,23725.0,0.62977553]
[1659275219713,0.303867,23730.0,23725.0,0.55777553]
[1659275219934,0.41199862,23732.0,23725.0,0.55777553]
[1659275220171,0.303867,23731.0,23725.0,0.50777553]
[1659275220402,0.303867,23730.0,23725.0,0.50777553]
[1659275220684,0.303867,23729.0,23725.0,0.58577553]
[1659275221095,0.0030547,23728.0,23725.0,0.58577553]
[1659275221098,0.0030547,23728.0,23726.0,0.03467316]
[1659275221443,0.0252,23728.0,23725.0,0.1785182]
[1659275221692,0.62267762,23732.0,23725.0,0.1785182]
[1659275222132,0.71112433,23731.0,23725.0,0.1005182]
[1659275222371,0.30873298,23730.0,23725.0,0.1725182]
[1659275222569,0.303867,23729.0,23725.0,0.1725182]
[1659275223028,0.00486598,23730.0,23726.0,0.04028674]
[1659275223242,0.303867,23729.0,23726.0,0.04028674]
[1659275223687,0.303867,23729.0,23725.0,0.1725182]
[1659275223926,0.00486598,23730.0,23726.0,0.03467316]
[1659275224151,0.303867,23729.0,23726.0,0.03467316]
[1659275224368,0.00486598,23730.0,23726.0,0.03467316]
[1659275224587,0.00486598,23730.0,23726.0,0.44193049]
[1659275224809,0.00486598,23730.0,23726.0,0.49193049]
[1659275225040,0.00486598,23730.0,23728.0,0.05]
[1659275225528,0.00486598,23730.0,23729.0,0.03467316]
[1659275225948,0.00486598,23730.0,23729.0,0.3386543]
[1659275226380,0.00486598,23730.0,23729.0,0.0347873]
[1659275226611,0.00486598,23730.0,23729.0,0.1127873]
[1659275226873,0.00486598,23730.0,23729.0,0.4666543]
[1659275227740,0.00486598,23730.0,23729.0,0.3886543]
[1659275228412,0.00486598,23730.0,23729.0,0.4676543]
[1659275229814,0.00486598,23730.0,23729.0,0.9522543]
[1659275230255,5.98e-06,23730.0,23729.0,1.40951163]
[1659275230500,5.98e-06,23730.0,23729.0,2.30887084]
[1659275231178,0.00248969,23730.0,23729.0,2.34048084]
[1659275232316,0.30492506,23741.0,23729.0,2.26562651]
[1659275232563,0.40725733,23740.0,23731.0,0.210576]
[1659275232780,0.30492506,23739.0,23732.0,0.40725733]
[1659275232998,0.71218239,23739.0,23732.0,0.45725733]
[1659275233217,0.71218239,23739.0,23735.0,0.05]
[1659275233445,0.0030547,23738.0,23735.0,0.05]
[1659275233674,0.71218239,23739.0,23736.0,0.03467316]
[1659275233913,0.303867,23738.0,23736.0,0.03467316]
[1659275234127,0.71218239,23739.0,23736.0,0.03467316]
[1659275234351,0.303867,23738.0,23736.0,0.03467316]
[1659275234608,0.0030547,23738.0,23736.0,0.075]
[1659275234845,0.0252,23738.0,23736.0,0.075]
[1659275235088,0.0252,23738.0,23737.0,0.05]
[1659275235318,0.0252,23739.0,23737.0,0.05]
[1659275235542,0.00255342,23739.0,23737.0,0.260535]
[1659275235767,0.00255342,23739.0,23738.0,0.03653217]
[1659275236471,0.00255342,23739.0,23738.0,0.11453217]
[1659275236697,0.00255342,23739.0,23738.0,0.16453217]
[1659275238088,0.00255342,23739.0,23738.0,0.08653217]
[1659275238333,0.00255342,23739.0,23738.0,0.05]
[1659275238641,0.00255342,23739.0,23738.0,0.078]
[1659275239110,0.00255342,23739.0,23738.0,0.08190161]
[1659275239351,0.30947512,23739.0,23738.0,0.08190161]
[1659275239582,0.71673245,23739.0,23738.0,0.08190161]
[1659275239837,1.51345751,23739.0,23738.0,0.00390161]
[1659275240056,1.25276593,23739.0,23738.0,0.00390161]
[1659275240320,1.20276593,23739.0,23738.0,0.00390161]
[1659275240548,0.78167775,23739.0,23738.0,0.00390161]
[1659275241233,0.78167775,23739.0,23736.0,0.05]
[1659275241459,0.47781075,23739.0,23736.0,0.05]
[1659275241690,0.303867,23738.0,23737.0,0.03467316]
[1659275242144,0.40981075,23739.0,23737.0,0.03467316]
[1659275242395,0.303867,23738.0,23737.0,0.03467316]
[1659275242645,0.00255342,23739.0,23737.0,0.11267316]
[1659275242879,0.303867,23738.0,23737.0,0.11413646]
[1659275243108,0.00255342,23739.0,23737.0,0.11413646]
[1659275243357,0.303867,23738.0,23737.0,0.11413646]
[1659275243564,0.00255342,23739.0,23737.0,0.11413646]
[1659275243784,0.00255342,23739.0,23737.0,0.03613646]
[1659275244514,0.303867,23738.0,23737.0,0.11413646]
[1659275244740,0.00255342,23739.0,23737.0,0.11413646]
[1659275244974,0.303867,23738.0,23737.0,0.11413646]
[1659275245217,0.00560812,23739.0,23737.0,0.078]
[1659275245453,0.303867,23738.0,23737.0,0.078]
[1659275245926,0.303867,23738.0,23736.0,0.05357372]
[1659275246136,0.00255342,23739.0,23737.0,0.03467316]
[1659275246421,0.303867,23738.0,23737.0,0.11267316]
[1659275246626,0.303867,23738.0,23737.0,0.078]
[1659275247284,0.303867,23738.0,23737.0,0.11267316]
[1659275247720,0.303867,23738.0,23737.0,0.03467316]
[1659275247945,0.00255342,23739.0,23737.0,0.03467316]
[1659275248204,0.00255342,23739.0,23738.0,7.315e-05]
[1659275248658,0.30642042,23739.0,23738.0,7.315e-05]
[1659275250583,0.30642042,23739.0,23738.0,0.07807315]
[1659275250800,0.30642042,23739.0,23738.0,0.078]
[1659275251694,0.30642042,23739.0,23738.0,0.00561358]
[1659275251930,0.30642042,23739.0,23738.0,0.05561358]
[1659275252584,0.30642042,23739.0,23738.0,0.13361358]
[1659275253482,0.30630774,23739.0,23738.0,0.13361358]
[1659275254024,0.30630774,23739.0,23738.0,0.05561358]
[1659275254257,0.00244074,23739.0,23738.0,0.05561358]
[1659275254472,0.30630774,23739.0,23738.0,0.13361358]
[1659275254695,0.00244074,23739.0,23738.0,0.13361358]
[1659275255621,0.00244074,23739.0,23738.0,0.13029274]
[1659275255844,0.30630774,23739.0,23738.0,0.05229274]
[1659275256585,0.30630774,23739.0,23738.0,0.128]
[1659275256810,0.00244074,23739.0,23738.0,0.13029274]
[1659275257722,0.00244074,23739.0,23738.0,0.05229274]
[1659275258193,0.00244074,23739.0,23738.0,0.00229274]
[1659275258413,0.30630774,23739.0,23738.0,0.07929274]
[1659275258858,0.00244074,23739.0,23738.0,0.07929274]
[1659275259314,0.00244074,23739.0,23738.0,0.077]
[1659275259799,0.00244074,23739.0,23737.0,0.03794272]
[1659275260472,0.00244074,23739.0,23737.0,0.11494272]
[1659275260704,0.00244074,23739.0,23737.0,0.077]
[1659275260946,0.303867,23738.0,23737.0,0.077]
[1659275261178,0.00549544,23739.0,23737.0,0.077]
[1659275261415,0.303867,23738.0,23737.0,0.11308693]
[1659275261697,0.303867,23738.0,23737.0,0.077]
[1659275261909,0.303867,23738.0,23734.0,0.90142506]
[1659275262138,0.00251954,23739.0,23734.0,1.30868239]
[1659275262598,0.00251954,23739.0,23737.0,0.078]
[1659275262817,0.303867,23738.0,23737.0,0.11267316]
[1659275263036,0.00251954,23739.0,23737.0,0.11267316]
[1659275263267,0.303867,23738.0,23737.0,0.11267316]
[1659275263483,0.00251954,23739.0,23737.0,0.11267316]
[1659275263728,0.00251954,23739.0,23737.0,0.03467316]
[1659275263967,0.303867,23738.0,23734.0,1.30868239]
[1659275264229,0.41027231,23739.0,23732.0,0.3757]
[1659275264462,0.41027231,23739.0,23737.0,0.077]
[1659275264697,0.5145,23738.0,23737.0,0.077]
[1659275265854,0.5145,23738.0,23732.0,0.71218239]
[1659275266087,0.41027231,23739.0,23732.0,0.71218239]
[1659275266313,0.71112433,23738.0,23732.0,0.30492506]
[1659275266547,0.303867,23737.0,23732.0,0.37792506]
[1659275266767,0.44125733,23738.0,23732.0,0.37792506]
[1659275267002,0.40725733,23736.0,23732.0,0.073]
[1659275267235,0.6092875,23735.0,23732.0,0.073]
[1659275267499,0.303867,23734.0,23732.0,0.073]
[1659275267723,0.429067,23733.0,23732.0,0.073]
[1659275268399,0.429067,23733.0,23727.0,0.5502]
[1659275268625,0.1252,23733.0,23732.0,0.077]
[1659275268837,0.429067,23733.0,23732.0,0.077]
[1659275269064,0.43161985,23733.0,23732.0,0.077]
[1659275269936,0.43161985,23733.0,23727.0,0.5502]
[1659275270152,0.12775285,23733.0,23727.0,0.5502]
[1659275270610,0.12775285,23733.0,23732.0,0.077]
[1659275270838,0.4341727,23733.0,23732.0,0.077]
[1659275271975,0.4341727,23733.0,23731.0,0.03855815]
[1659275272199,0.43466814,23733.0,23727.0,1.21808833]
[1659275272422,0.13080114,23733.0,23732.0,0.078]
[1659275272638,0.30946814,23733.0,23732.0,0.078]
[1659275273759,0.30946814,23733.0,23728.0,0.30492506]
[1659275273958,0.00560114,23733.0,23728.0,0.30492506]
[1659275274414,0.00560114,23733.0,23728.0,0.38292506]
[1659275275094,0.21626614,23733.0,23728.0,0.078]
[1659275275299,0.1294,23731.0,23728.0,0.078]
[1659275275510,0.43885733,23732.0,23728.0,0.078]
[1659275275511,0.1252,23729.0,23728.0,0.078]
[1659275275785,0.1252,23729.0,23725.0,0.1102682]
[1659275275786,0.71112433,23729.0,23725.0,0.1102682]
[1659275276014,0.71112433,23728.0,23725.0,0.1102682]
[1659275276237,0.303867,23727.0,23725.0,0.19494136]
[1659275276468,0.6014057,23733.0,23726.0,0.303867]
[1659275276684,0.71112433,23732.0,23727.0,0.30492506]
[1659275276909,0.71112433,23731.0,23727.0,0.30492506]
[1659275277208,0.40725733,23731.0,23728.0,0.03467316]
[1659275277429,0.303867,23730.0,23728.0,0.03467316]
[1659275277647,0.0252,23731.0,23726.0,0.5702]
[1659275277867,0.6014057,23733.0,23726.0,0.5702]
[1659275278102,0.0025468,23728.0,23726.0,0.5702]
[1659275278334,0.0025468,23728.0,23727.0,0.03467316]
[1659275279253,0.40725733,23732.0,23727.0,0.03467316]
[1659275279463,0.303867,23731.0,23727.0,0.03467316]
[1659275279756,0.40725733,23732.0,23727.0,0.03467316]
[1659275279961,0.303867,23731.0,23727.0,0.03467316]
[1659275280072,0.40725733,23732.0,23727.0,0.03467316]
[1659275280301,0.303867,23731.0,23727.0,0.10867316]
[1659275280527,0.00049544,23730.0,23727.0,0.10867316]
[1659275280752,0.43525733,23732.0,23727.0,0.41359822]
[1659275280990,0.0532,23732.0,23727.0,0.62422422]
[1659275281210,0.028,23732.0,23728.0,0.05]
[1659275281429,0.0532,23732.0,23728.0,0.05]
[1659275281655,0.0252,23732.0,23728.0,0.05]
[1659275281871,0.00509965,23733.0,23728.0,0.05]
[1659275282119,0.303867,23732.0,23728.0,0.05]
[1659275282303,0.303867,23731.0,23728.0,0.078]
[1659275282527,0.41235698,23733.0,23728.0,0.078]
[1659275282738,0.303867,23732.0,23728.0,0.078]
[1659275282941,0.303867,23731.0,23729.0,0.00036086]
[1659275283166,0.303867,23730.0,23729.0,0.00036086]
[1659275283393,0.00509965,23733.0,23729.0,0.00036086]
[1659275283623,0.30377734,23732.0,23729.0,0.00036086]
[1659275284291,0.05,23731.0,23730.0,0.03467316]
[1659275284495,0.32897734,23732.0,23730.0,0.03467316]
[1659275284862,0.05,23731.0,23730.0,0.03467316]
[1659275285071,0.32897734,23732.0,23730.0,0.03467316]
[1659275285824,0.32897734,23732.0,23729.0,0.00036086]
[1659275286482,0.32897734,23732.0,23729.0,0.28898986]
[1659275286687,0.05,23731.0,23729.0,0.28898986]
[1659275286891,0.0252,23732.0,23730.0,0.03467316]
[1659275287125,0.329085,23732.0,23730.0,0.03467316]
[1659275287369,0.05,23731.0,23730.0,0.03467316]
[1659275287565,0.33169882,23732.0,23730.0,0.03467316]
[1659275287566,0.02781382,23732.0,23730.0,0.03467316]
[1659275288060,0.33169882,23732.0,23730.0,0.03467316]
[1659275288577,0.33169882,23732.0,23730.0,0.11267316]
[1659275289042,0.33169882,23732.0,23730.0,0.078]
[1659275289231,0.33169882,23732.0,23730.0,0.11267316]
[1659275289680,0.30649882,23732.0,23730.0,0.11267316]
[1659275289923,0.30649882,23732.0,23730.0,0.03467316]
[1659275290415,0.30649882,23732.0,23729.0,0.00036086]
[1659275290621,0.00261382,23732.0,23730.0,0.078]
[1659275290812,0.30649882,23732.0,23730.0,0.078]
[1659275291779,0.30649882,23732.0,23729.0,0.00036086]
[1659275292005,0.00261382,23732.0,23729.0,0.00036086]
[1659275292520,0.00261382,23732.0,23730.0,0.03467316]
[1659275292750,0.00255285,23733.0,23730.0,0.03467316]
[1659275292960,0.30643785,23733.0,23730.0,0.03467316]
[1659275293840,0.30643785,23733.0,23729.0,0.31630086]
[1659275294316,0.30643785,23733.0,23729.0,0.39230086]
[1659275295038,0.30643785,23733.0,23730.0,0.03467316]
[1659275295255,0.02775285,23733.0,23730.0,0.03467316]
[1659275295500,0.02775285,23733.0,23729.0,0.81353286]
[1659275295501,0.02775285,23733.0,23729.0,0.28698786]
[1659275295727,0.02775285,23733.0,23729.0,0.21098786]
[1659275295943,0.05,23732.0,23729.0,0.21098786]
[1659275296167,0.00255285,23733.0,23730.0,0.03467316]
[1659275296403,0.33163785,23733.0,23730.0,0.03467316]
[1659275296629,0.02775285,23733.0,23730.0,0.03458329]
[1659275297044,0.02824829,23733.0,23730.0,0.03458329]
[1659275297262,0.33213329,23733.0,23730.0,0.03458329]
[1659275297475,0.02824829,23733.0,23729.0,0.07736086]
[1659275297712,0.02824829,23733.0,23729.0,0.00036086]
[1659275298384,0.02775285,23733.0,23729.0,0.07736086]
[1659275298603,0.05,23732.0,23730.0,0.03458328]
[1659275298826,0.00255285,23733.0,23730.0,0.03458328]
[1659275299047,0.30643785,23733.0,23730.0,0.03458328]
[1659275300510,8.988e-05,23732.0,23730.0,0.11158328]
[1659275300719,0.30643785,23733.0,23730.0,0.11158328]
[1659275301062,0.02775285,23733.0,23730.0,0.11158328]
[1659275301263,0.00255285,23733.0,23731.0,0.21061]
[1659275301498,0.00255285,23733.0,23730.0,0.11158328]
[1659275301715,0.00255285,23733.0,23730.0,0.24520028]
[1659275302407,0.00255285,23733.0,23731.0,0.00817284]
[1659275303053,0.00313817,23733.0,23731.0,0.00817284]
[1659275303285,0.00255285,23733.0,23731.0,0.00817284]
[1659275304377,0.00313817,23733.0,23731.0,0.078]
[1659275304591,0.00255285,23733.0,23731.0,0.078]
[1659275305689,0.00255285,23733.0,23730.0,0.08458328]
[1659275306374,0.00255285,23733.0,23730.0,0.16258328]
[1659275306596,0.00255285,23733.0,23730.0,0.128]
[1659275306597,0.00058532,23732.0,23730.0,0.128]
[1659275306843,0.00058532,23732.0,23730.0,0.078]
[1659275307045,0.02775285,23733.0,23730.0,0.11258328]
[1659275307257,0.05,23732.0,23730.0,0.11258328]
[1659275307467,0.02775285,23733.0,23730.0,0.11258328]
[1659275307689,0.02775285,23733.0,23730.0,0.03458328]
[1659275308357,0.00255285,23733.0,23730.0,0.03445859]
[1659275308580,0.00255285,23733.0,23730.0,0.077]
[1659275308809,0.30643785,23733.0,23730.0,0.077]
[1659275309011,0.00049544,23732.0,23730.0,0.077]
[1659275309464,0.0032082,23732.0,23730.0,0.077]
[1659275309932,0.0032082,23732.0,23728.0,0.05]
[1659275310365,0.0032082,23732.0,23729.0,0.0344586]
[1659275310617,0.00271276,23732.0,23730.0,0.078]
[1659275311275,0.30659776,23732.0,23730.0,0.078]
[1659275311492,0.30681233,23732.0,23730.0,0.078]
[1659275311714,0.30681233,23732.0,23729.0,0.0344586]
[1659275311967,0.00292733,23732.0,23729.0,0.0344586]
[1659275312206,0.30659776,23732.0,23729.0,0.0344586]
[1659275312418,0.303885,23731.0,23729.0,0.1124586]
[1659275312638,0.00271276,23732.0,23729.0,0.1124586]
[1659275313300,0.00255285,23733.0,23729.0,0.1124586]
[1659275313563,0.30409957,23732.0,23729.0,0.1124586]
[1659275313787,0.00255285,23733.0,23729.0,0.0344586]
[1659275314010,0.30643785,23733.0,23730.0,0.00507072]
[1659275314226,0.30438044,23732.0,23729.0,0.0344586]
[1659275314448,0.30438044,23732.0,23729.0,0.077]
[1659275314782,0.00049544,23732.0,23730.0,0.0344586]
[1659275314984,0.30409957,23732.0,23729.0,0.077]
[1659275315208,0.0252,23732.0,23729.0,0.077]
[1659275315433,0.30643785,23733.0,23729.0,0.077]
[1659275315646,0.303885,23732.0,23730.0,0.0344586]
[1659275315931,0.00255285,23733.0,23730.0,0.0344586]
[1659275316162,0.30693329,23733.0,23730.0,0.03952932]
[1659275316375,0.00264163,23732.0,23730.0,0.03952932]
[1659275316608,0.00264163,23732.0,23730.0,0.11752932]
[1659275316837,0.00264163,23732.0,23730.0,0.078]
[1659275317729,0.00264163,23732.0,23731.0,0.0344586]
[1659275317974,0.30652663,23732.0,23729.0,0.315936]
[1659275318208,0.00264163,23732.0,23729.0,0.315936]
[1659275318445,0.00264163,23732.0,23731.0,0.078]
[1659275318878,0.00264163,23732.0,23731.0,0.1124586]
[1659275319560,0.00255285,23733.0,23731.0,0.078]
[1659275319807,0.00255285,23733.0,23728.0,0.35]
[1659275320036,0.00255285,23733.0,23731.0,0.05]